bitfinex/quotes_BTCUSD_20251230
["timestamp","ask_amount","ask_price","bid_price","bid_amount"]
[1767072862809,0.01147091,87177.0,87165.0,0.01147249]
[1767072863090,0.01147091,87177.0,87163.0,0.01147275]
[1767072863091,0.0221839,87176.0,87163.0,0.01147275]
[1767072863230,0.02218403,87175.0,87163.0,0.01147275]
[1767072863440,0.01071286,87174.0,87163.0,0.01147275]
[1767072864071,0.01071286,87174.0,87164.0,0.01147262]
[1767072864289,0.01071286,87173.0,87163.0,0.01147275]
[1767072864490,0.01071286,87172.0,87163.0,0.01147275]
[1767072864692,0.01147117,87175.0,87162.0,0.01147288]
[1767072864894,0.01071507,87174.0,87163.0,0.01147275]
[1767072865160,0.01071507,87173.0,87163.0,0.01147275]
[1767072865514,0.010716,87172.0,87162.0,0.01147288]
[1767072865827,0.01147131,87174.0,87161.0,0.02295302]
[1767072865828,0.01147144,87173.0,87161.0,0.02295302]
[1767072866027,0.01147131,87174.0,87162.0,0.01147288]
[1767072866158,0.01071619,87173.0,87162.0,0.01147288]
[1767072866358,0.01147117,87175.0,87163.0,0.01147275]
[1767072866559,0.01071622,87174.0,87163.0,0.01147275]
[1767072866861,0.01071622,87173.0,87162.0,0.01147288]
[1767072867198,0.01147131,87174.0,87162.0,0.01147288]
[1767072867540,0.01071623,87173.0,87162.0,0.01147288]
[1767072867686,0.01147131,87174.0,87162.0,0.01147288]
[1767072867885,0.01071618,87173.0,87162.0,0.01147288]
[1767072868088,0.01071616,87172.0,87161.0,0.02295302]
[1767072868325,0.01147157,87172.0,87161.0,0.01148]
[1767072868502,0.01147209,87168.0,87161.0,0.01148]
[1767072868959,0.01147236,87166.0,87161.0,0.01148]
[1767072869344,0.00055,87161.0,87151.0,0.01147433]
[1767072869547,0.01147315,87160.0,87153.0,0.01148]
[1767072869701,0.01147341,87158.0,87145.0,0.01147512]
[1767072869885,0.01147328,87159.0,87150.0,0.01148]
[1767072870091,0.01147328,87159.0,87143.0,0.05737676]
[1767072870092,0.521881,87160.0,87138.0,0.01147604]
[1767072870340,0.521881,87160.0,87140.0,0.01148]
[1767072870341,0.01147433,87151.0,87140.0,0.01148]
[1767072870662,0.0002,87149.0,87140.0,0.01148]
[1767072871012,0.01147433,87151.0,87140.0,0.01148]
[1767072871206,0.01147446,87150.0,87140.0,0.01148]
[1767072871750,0.01147433,87151.0,87140.0,0.01148]
[1767072871949,0.01147407,87153.0,87141.0,0.01147565]
[1767072872393,0.08032219,87156.0,87142.0,0.01147552]
[1767072872394,0.01147381,87155.0,87142.0,0.01147552]
[1767072872829,0.01147381,87155.0,87143.0,0.01147539]
[1767072873234,0.01147394,87154.0,87143.0,0.0001395]
[1767072873458,0.01147381,87155.0,87143.0,0.0001395]
[1767072873776,0.02295367,87156.0,87143.0,0.01161489]
[1767072873927,0.01147381,87155.0,87143.0,0.01161489]
[1767072874470,0.01147394,87154.0,87143.0,0.0001395]
[1767072874633,0.01148,87156.0,87145.0,0.01147512]
[1767072874856,0.01148,87156.0,87143.0,0.0001395]
[1767072875102,0.01148,87156.0,87143.0,0.01161489]
[1767072875281,0.01147381,87155.0,87143.0,0.01161489]
[1767072876003,0.02295367,87156.0,87144.0,0.01147525]
[1767072876300,0.01148,87156.0,87145.0,0.01147512]
[1767072876643,0.02295367,87156.0,87144.0,0.0001395]
[1767072876876,0.01147381,87155.0,87144.0,0.0001395]
[1767072877087,0.02295367,87156.0,87144.0,0.01161475]
[1767072877266,0.01147381,87155.0,87144.0,0.0001395]
[1767072878114,0.02295367,87156.0,87144.0,0.0001395]
[1767072878322,0.02295367,87156.0,87145.0,0.0002]
[1767072878473,0.01147381,87155.0,87145.0,0.0002]
[1767072878873,0.02295367,87156.0,87145.0,0.0002]
[1767072879075,0.01147381,87155.0,87145.0,0.0002]
[1767072879398,0.02295367,87156.0,87145.0,0.0003395]
[1767072879773,0.01148,87156.0,87145.0,0.0003395]
[1767072880799,0.01148,87156.0,87145.0,0.01181462]
[1767072881533,0.01148,87156.0,87146.0,0.01147499]
[1767072881741,0.01148,87156.0,87145.0,0.01181462]
[1767072881945,0.01148,87156.0,87146.0,0.01147499]
[1767072882116,0.02295367,87156.0,87145.0,0.0003395]
[1767072882346,0.01148,87156.0,87145.0,0.01181462]
[1767072882552,0.02295367,87156.0,87145.0,0.0003395]
[1767072883130,0.01148,87156.0,87145.0,0.0003395]
[1767072883660,0.01147381,87155.0,87145.0,0.0003395]
[1767072883858,0.01148,87156.0,87145.0,0.0003395]
[1767072885347,0.02295367,87156.0,87145.0,0.0003395]
[1767072885530,0.14433,87164.0,87156.0,0.000549]
[1767072885730,0.01148,87160.0,87156.0,0.000549]
[1767072885970,0.01148,87160.0,87150.0,0.01147446]
[1767072886359,0.01148,87160.0,87150.0,0.01161396]
[1767072886556,0.01148,87160.0,87151.0,0.01147433]
[1767072886759,0.01148,87160.0,87152.0,0.0114742]
[1767072886959,0.01158789,87161.0,87152.0,0.0114742]
[1767072887702,0.01158789,87161.0,87153.0,0.01147407]
[1767072887904,0.01158789,87161.0,87152.0,0.0114742]
[1767072888105,0.01158789,87161.0,87151.0,0.01161383]
[1767072888485,0.01158789,87161.0,87152.0,0.0114742]
[1767072888902,0.01158789,87161.0,87153.0,0.01147407]
[1767072889095,0.00010789,87161.0,87151.0,0.0001395]
[1767072889296,0.00010789,87161.0,87148.0,0.02295473]
[1767072889511,0.01147315,87160.0,87148.0,0.01148]
[1767072889913,0.01158091,87161.0,87148.0,0.02295473]
[1767072890075,0.00010789,87161.0,87149.0,0.0114746]
[1767072890277,0.01158091,87161.0,87149.0,0.0114746]
[1767072890869,0.01158091,87161.0,87148.0,0.02295473]
[1767072891189,0.00010789,87161.0,87149.0,0.0114746]
[1767072892414,0.00010789,87161.0,87150.0,0.01147446]
[1767072892825,0.00010789,87161.0,87149.0,0.0114746]
[1767072893056,0.00010789,87161.0,87150.0,0.01147446]
[1767072893237,0.00010789,87161.0,87149.0,0.0114746]
[1767072893413,0.00010789,87161.0,87150.0,0.01147446]
[1767072893823,0.00010789,87161.0,87149.0,0.0114746]
[1767072894021,0.00010789,87161.0,87150.0,0.01147446]
[1767072894342,0.00010789,87161.0,87149.0,0.0114746]
[1767072894884,0.00010789,87161.0,87150.0,0.01147446]
[1767072895229,0.01148,87163.0,87152.0,0.0114742]
[1767072895431,0.01144049,87163.0,87153.0,0.01147407]
[1767072895637,0.02465821,87167.0,87157.0,0.01147354]
[1767072895820,0.02465821,87167.0,87156.0,0.01147367]
[1767072895821,0.01148,87170.0,87156.0,0.01147367]
[1767072896021,0.02295183,87170.0,87157.0,0.01147354]
[1767072896475,0.01147117,87175.0,87161.0,0.01147302]
[1767072896677,0.02295131,87174.0,87160.0,0.52209378]
[1767072896879,0.01147144,87173.0,87161.0,0.01147302]
[1767072897039,0.01147157,87172.0,87160.0,0.53356693]
[1767072897245,0.01148,87174.0,87163.0,0.01147275]
[1767072897658,0.01148,87174.0,87164.0,0.01147262]
[1767072898144,0.01148,87174.0,87163.0,0.01147275]
[1767072898782,0.01147091,87177.0,87163.0,0.01147275]
[1767072899081,0.01147131,87174.0,87162.0,0.01147288]
[1767072899782,0.02295117,87175.0,87163.0,0.01147275]
[1767072900144,0.02295117,87175.0,87162.0,0.01147288]
[1767072900145,0.01147131,87174.0,87162.0,0.01147288]
[1767072900384,0.01148,87175.0,87163.0,0.01147275]
[1767072900849,0.02290991,87175.0,87162.0,0.01147288]
[1767072901397,0.01147209,87168.0,87159.0,0.01148]
[1767072901715,0.01147249,87165.0,87152.0,0.01158209]
[1767072901897,0.01147302,87161.0,87152.0,0.00010789]
[1767072902118,0.01147262,87164.0,87152.0,0.00010789]
[1767072902279,0.01147183,87170.0,87152.0,0.01158209]
[1767072902597,0.01147196,87169.0,87156.0,0.01147367]
[1767072902798,0.01147209,87168.0,87156.0,0.01147367]
[1767072903003,0.01147209,87168.0,87155.0,0.01147381]
[1767072903211,0.01147196,87169.0,87156.0,0.01147367]
[1767072903344,0.01147196,87169.0,87155.0,0.01147381]
[1767072903345,0.01147223,87167.0,87154.0,0.01147394]
[1767072903546,0.01147223,87167.0,87155.0,0.01147381]
[1767072903991,0.01147209,87168.0,87155.0,0.01147381]
[1767072904306,0.01147262,87164.0,87152.0,0.01158209]
[1767072904528,0.01147249,87165.0,87153.0,0.01147407]
[1767072904805,0.01147249,87165.0,87152.0,0.01158209]
[1767072905030,0.01147249,87165.0,87152.0,0.00010789]
[1767072905251,0.01147262,87164.0,87152.0,0.00010789]
[1767072905391,0.01147249,87165.0,87152.0,0.01158209]
[1767072905780,0.01147262,87164.0,87152.0,0.00010789]
[1767072906189,0.01147249,87165.0,87152.0,0.01158209]
[1767072906402,0.01147236,87166.0,87153.0,0.01147407]
[1767072906755,0.01147223,87167.0,87154.0,0.01147394]
[1767072906959,0.01147209,87168.0,87155.0,0.01147381]
[1767072907485,0.01147236,87166.0,87154.0,0.01147394]
[1767072908207,0.01147249,87165.0,87153.0,0.01147407]
[1767072908932,0.01147249,87165.0,87152.0,0.01158209]
[1767072909135,0.01147249,87165.0,87153.0,0.01147407]
[1767072909358,0.01147236,87166.0,87153.0,0.01147407]
[1767072910517,0.01147236,87166.0,87154.0,0.01147394]
[1767072910711,0.01147236,87166.0,87153.0,0.01147407]
[1767072910914,0.01147236,87166.0,87154.0,0.01147394]
[1767072911046,0.01147236,87166.0,87153.0,0.01147407]
[1767072911789,0.05735994,87169.0,87157.0,0.01147354]
[1767072911790,0.01147196,87169.0,87157.0,0.01147354]
[1767072911991,0.01148,87170.0,87157.0,0.01147354]
[1767072912821,0.02295183,87170.0,87157.0,0.01147354]
[1767072913790,0.01148,87170.0,87159.0,0.01147328]
[1767072913993,0.01148,87170.0,87158.0,0.01147341]
[1767072913994,0.02295183,87170.0,87158.0,0.01147341]
[1767072914204,0.01147183,87170.0,87158.0,0.01147341]
[1767072915255,0.01147209,87168.0,87157.0,0.01148]
[1767072915403,0.01147196,87169.0,87157.0,0.01148]
[1767072915607,0.01147209,87168.0,87157.0,0.01148]
[1767072916253,0.01147236,87166.0,87157.0,0.01148]
[1767072916434,0.01147223,87167.0,87157.0,0.01148]
[1767072916630,0.01147249,87165.0,87157.0,0.01148]
[1767072916838,0.01147236,87166.0,87157.0,0.01148]
[1767072917036,0.01147223,87167.0,87157.0,0.01148]
[1767072917360,0.01147236,87166.0,87157.0,0.01148]
[1767072917510,0.01147223,87167.0,87157.0,0.01148]
[1767072919040,0.01147236,87166.0,87157.0,0.01148]
[1767072919231,0.01147262,87164.0,87157.0,0.01148]
[1767072919465,0.01147249,87165.0,87157.0,0.01148]
[1767072919844,0.01147262,87164.0,87157.0,0.01148]
[1767072920253,0.01147249,87165.0,87157.0,0.01148]
[1767072920435,0.01147117,87175.0,87164.0,0.000549]
[1767072920637,0.01147117,87175.0,87160.0,0.01147315]
[1767072920638,0.02218924,87174.0,87163.0,0.01147275]
[1767072920839,0.01070924,87173.0,87164.0,0.01147262]
[1767072921039,0.01148,87176.0,87163.0,0.01147275]
[1767072921238,0.01070933,87175.0,87164.0,0.01147262]
[1767072921454,0.01070933,87174.0,87164.0,0.01147262]
[1767072921654,0.01070933,87173.0,87164.0,0.01147262]
[1767072921853,0.01148,87176.0,87165.0,0.01147249]
[1767072922058,0.01071033,87175.0,87165.0,0.01147249]
[1767072922253,0.0204353,87178.0,87169.0,0.01147196]
[1767072922468,0.01166808,87181.0,87168.0,0.01147209]
[1767072923044,0.01147104,87176.0,87165.0,0.01148]
[1767072923261,0.05735389,87179.0,87165.0,0.02295249]
[1767072923262,0.01147091,87177.0,87165.0,0.02295249]
[1767072923480,0.01147078,87178.0,87165.0,0.02295249]
[1767072923693,0.01147091,87177.0,87165.0,0.02295249]
[1767072923896,0.01147078,87178.0,87165.0,0.02295249]
[1767072924150,0.01147104,87176.0,87165.0,0.01148]
[1767072924312,0.01147117,87175.0,87165.0,0.01148]
[1767072924893,0.01147131,87174.0,87165.0,0.01148]
[1767072925096,0.01147117,87175.0,87165.0,0.01148]
[1767072925298,0.01147131,87174.0,87165.0,0.01148]
[1767072926194,0.01147117,87175.0,87165.0,0.01148]
[1767072926434,0.01147104,87176.0,87165.0,0.01148]
[1767072926676,0.01147078,87178.0,87165.0,0.01148]
[1767072926876,0.01147078,87178.0,87165.0,0.02295249]
[1767072927178,0.06882484,87178.0,87165.0,0.01148]
[1767072927445,0.01147091,87177.0,87165.0,0.02295249]
[1767072928063,0.01147091,87177.0,87165.0,0.01148]
[1767072928213,0.01147117,87175.0,87165.0,0.01148]
[1767072928429,0.01147131,87174.0,87165.0,0.01148]
[1767072928856,0.0114717,87171.0,87165.0,0.01148]
[1767072929055,0.0114717,87171.0,87153.0,0.01147407]
[1767072929056,0.00055,87165.0,87160.0,0.01148]
[1767072929261,0.13541,87165.0,87160.0,0.01148]
[1767072930068,0.13541,87165.0,87156.0,0.01148]
[1767072930945,0.13541,87165.0,87156.0,0.02295367]
[1767072931165,0.13541,87165.0,87156.0,0.01148]
[1767072931639,0.14688249,87165.0,87156.0,0.01148]
[1767072931978,0.14688249,87165.0,87155.0,0.01148]
[1767072932136,0.13541,87165.0,87155.0,0.01148]
[1767072933680,0.13541,87165.0,87155.0,0.02295381]
[1767072933880,0.13541,87165.0,87155.0,0.01148]
[1767072934385,0.13541,87165.0,87155.0,0.02295381]
[1767072934738,0.13541,87165.0,87155.0,0.01148]
[1767072935281,0.13541,87165.0,87156.0,0.01147367]
[1767072935502,0.01147196,87169.0,87156.0,0.01147367]
[1767072935812,0.01071725,87168.0,87156.0,0.01147367]
[1767072936023,0.01147196,87169.0,87156.0,0.01147367]
[1767072936229,0.01071726,87168.0,87156.0,0.01147367]
[1767072936433,0.01147196,87169.0,87156.0,0.01147367]
[1767072936631,0.02218933,87168.0,87156.0,0.01147367]
[1767072936856,0.01147223,87167.0,87155.0,0.02295381]
[1767072937882,0.01147209,87168.0,87155.0,0.02295381]
[1767072938107,0.01147209,87168.0,87155.0,0.01148]
[1767072938327,0.01147223,87167.0,87155.0,0.02295381]
[1767072938482,0.01147223,87167.0,87155.0,0.01148]
[1767072939082,0.01147236,87166.0,87155.0,0.01148]
[1767072939284,0.01147223,87167.0,87155.0,0.02295381]
[1767072940606,0.01147196,87169.0,87155.0,0.02295381]
[1767072940806,0.01071678,87168.0,87156.0,0.01147367]
[1767072941048,0.01147196,87169.0,87156.0,0.01147367]
[1767072941248,0.01071681,87168.0,87156.0,0.01147367]
[1767072941397,0.53337826,87170.0,87157.0,0.01147354]
[1767072941600,0.01071682,87169.0,87158.0,0.01147341]
[1767072941933,0.01071682,87168.0,87159.0,0.01147328]
[1767072942262,0.52190643,87170.0,87159.0,0.01147328]
[1767072942397,0.01071675,87169.0,87159.0,0.01147328]
[1767072942613,0.01071675,87168.0,87158.0,0.01147341]
[1767072942818,0.08030871,87173.0,87158.0,0.01147341]
[1767072943019,0.0107168,87170.0,87158.0,0.01147341]
[1767072943218,0.0107168,87169.0,87158.0,0.01147341]
[1767072943661,0.0107168,87169.0,87160.0,0.01147315]
[1767072943871,0.0107168,87168.0,87158.0,0.01147341]
[1767072944179,0.0114717,87171.0,87158.0,0.01147341]
[1767072944410,0.01071678,87170.0,87158.0,0.01147341]
[1767072944547,0.01071678,87169.0,87158.0,0.01147341]
[1767072944757,0.01071678,87168.0,87159.0,0.01147328]
[1767072945101,0.03616338,87172.0,87159.0,0.01147328]
[1767072945271,0.01071676,87171.0,87159.0,0.01147328]
[1767072945598,0.01071676,87170.0,87159.0,0.01147328]
[1767072945798,0.01071676,87169.0,87159.0,0.01147328]
[1767072945993,0.01071676,87168.0,87159.0,0.01147328]
[1767072946173,0.0114717,87171.0,87159.0,0.01147328]
[1767072946500,0.01071675,87170.0,87159.0,0.01147328]
[1767072946729,0.01071675,87169.0,87159.0,0.01147328]
[1767072946905,0.01071675,87168.0,87159.0,0.01147328]
[1767072947071,0.0114717,87171.0,87159.0,0.01147328]
[1767072947278,0.01071678,87170.0,87159.0,0.01147328]
[1767072947482,0.01071678,87169.0,87159.0,0.01147328]
[1767072947706,0.01071678,87168.0,87159.0,0.01147328]
[1767072947878,0.0114717,87171.0,87159.0,0.01147328]
[1767072948081,0.01071673,87170.0,87159.0,0.01147328]
[1767072948306,0.01071673,87169.0,87159.0,0.01147328]
[1767072948502,0.01071673,87168.0,87159.0,0.01147328]
[1767072948679,0.0114717,87171.0,87159.0,0.01147328]
[1767072948898,0.01071673,87170.0,87159.0,0.01147328]
[1767072949078,0.01071673,87169.0,87159.0,0.01147328]
[1767072949435,0.01071673,87168.0,87159.0,0.01147328]
[1767072949613,0.0114717,87171.0,87159.0,0.01147328]
[1767072949799,0.01071683,87170.0,87159.0,0.01147328]
[1767072949975,0.01071683,87169.0,87159.0,0.01147328]
[1767072950175,0.01071683,87168.0,87160.0,0.01147315]
[1767072950401,0.01147157,87172.0,87160.0,0.01147315]
[1767072950741,0.01071701,87171.0,87160.0,0.01147315]
[1767072950916,0.01071701,87170.0,87160.0,0.01147315]
[1767072951238,0.01071701,87169.0,87158.0,0.01147341]
[1767072951456,0.01071701,87168.0,87158.0,0.01147341]
[1767072951662,0.01147183,87170.0,87158.0,0.01147341]
[1767072951828,0.01071719,87169.0,87158.0,0.01147341]
[1767072952034,0.01071719,87168.0,87158.0,0.01147341]
[1767072952236,0.0114717,87171.0,87159.0,0.01147328]
[1767072952439,0.01071729,87170.0,87159.0,0.01147328]
[1767072952600,0.02218925,87169.0,87153.0,0.06884433]
[1767072952805,0.01147236,87166.0,87153.0,0.01147407]
[1767072953004,0.01147236,87166.0,87154.0,0.01147394]
[1767072953241,0.01147249,87165.0,87153.0,0.01147407]
[1767072953581,0.01147262,87164.0,87156.0,0.01148]
[1767072953704,0.01147236,87166.0,87156.0,0.01148]
[1767072954058,0.01147249,87165.0,87156.0,0.01148]
[1767072954282,0.01147236,87166.0,87156.0,0.01148]
[1767072954471,0.01147249,87165.0,87156.0,0.01148]
[1767072954625,0.57926576,87170.0,87156.0,0.01148]
[1767072954626,0.05735933,87170.0,87156.0,0.01148]
[1767072954822,0.01147209,87168.0,87156.0,0.01148]
[1767072955040,0.01147209,87168.0,87156.0,0.02295367]
[1767072955252,0.01071901,87167.0,87156.0,0.01148]
[1767072955433,0.01147209,87168.0,87156.0,0.01148]
[1767072955774,0.02219121,87167.0,87156.0,0.01148]
[1767072955930,0.01147209,87168.0,87156.0,0.01148]
[1767072956131,0.01071887,87167.0,87156.0,0.01148]
[1767072956464,0.01147209,87168.0,87156.0,0.02295367]
[1767072956665,0.0107198,87167.0,87157.0,0.01147354]
[1767072956871,0.01147196,87169.0,87157.0,0.01147354]
[1767072957099,0.01071981,87168.0,87156.0,0.02295367]
[1767072957226,0.01071981,87167.0,87156.0,0.02295367]
[1767072957432,0.01147196,87169.0,87156.0,0.02295367]
[1767072957682,0.01072101,87168.0,87156.0,0.02295367]
[1767072957953,0.01072101,87167.0,87156.0,0.02295367]
[1767072958154,0.01072324,87166.0,87157.0,0.01147354]
[1767072958352,0.01147196,87169.0,87157.0,0.01147354]
[1767072958521,0.01072315,87168.0,87156.0,0.02295367]
[1767072958721,0.01072315,87167.0,87158.0,0.01147341]
[1767072958924,0.01072315,87166.0,87158.0,0.01147341]
[1767072959142,0.53337826,87170.0,87157.0,0.01147354]
[1767072959348,0.01072385,87169.0,87158.0,0.01147341]
[1767072959547,0.01072385,87168.0,87159.0,0.01147328]
[1767072959766,0.01072385,87167.0,87158.0,0.01147341]
[1767072959966,0.01072385,87166.0,87158.0,0.01147341]
[1767072960179,0.53337826,87170.0,87158.0,0.01147341]
[1767072960387,0.01072387,87169.0,87158.0,0.01147341]
[1767072960583,0.01072387,87168.0,87158.0,0.01147341]
[1767072960785,0.01072387,87167.0,87157.0,0.01147354]
[1767072960949,0.01072387,87166.0,87158.0,0.01147341]
[1767072961136,0.53337826,87170.0,87158.0,0.01147341]
[1767072961336,0.01072319,87169.0,87158.0,0.01147341]
[1767072961686,0.01072319,87168.0,87158.0,0.01147341]
[1767072961863,0.01072319,87167.0,87158.0,0.01147341]
[1767072962186,0.01072319,87166.0,87156.0,0.02295367]
[1767072962415,0.53337826,87170.0,87158.0,0.01147341]
[1767072962688,0.01072283,87169.0,87157.0,0.01147354]
[1767072962913,0.53337826,87170.0,87157.0,0.01147354]
[1767072962914,0.01072283,87168.0,87158.0,0.01147341]
[1767072963101,0.01072283,87168.0,87157.0,0.01147354]
[1767072963102,0.01072283,87167.0,87157.0,0.01147354]
[1767072963421,0.01072283,87166.0,87158.0,0.01147341]
[1767072963600,0.53337826,87170.0,87158.0,0.01147341]
[1767072963778,0.01072289,87169.0,87158.0,0.01147341]
[1767072963996,0.01072289,87168.0,87158.0,0.01147341]
[1767072964166,0.01072289,87167.0,87157.0,0.01147354]
[1767072964372,0.01072289,87166.0,87156.0,0.02295367]
[1767072964604,0.01147196,87169.0,87156.0,0.02295367]
[1767072964788,0.01072288,87168.0,87156.0,0.02295367]
[1767072964997,0.01072288,87167.0,87157.0,0.01147354]
[1767072965200,2.88e-06,87166.0,87159.0,0.01147328]
[1767072965399,0.01148,87173.0,87158.0,0.01147341]
[1767072965400,0.52190643,87170.0,87158.0,0.01147341]
[1767072965614,0.52190643,87170.0,87159.0,0.01147328]
[1767072965804,0.0114717,87171.0,87158.0,0.01147341]
[1767072966001,0.01147183,87170.0,87158.0,0.01147341]
[1767072966216,0.01147183,87170.0,87156.0,0.02295367]
[1767072966557,0.01147183,87170.0,87158.0,0.01147341]
[1767072966775,0.01147196,87169.0,87157.0,0.01147354]
[1767072967103,0.03617723,87171.0,87158.0,0.01147341]
[1767072967305,0.01147183,87170.0,87158.0,0.01147341]
[1767072967511,0.01147183,87170.0,87156.0,0.01148]
[1767072967512,0.01147236,87166.0,87156.0,0.01148]
[1767072967730,0.01147249,87165.0,87156.0,0.01148]
[1767072968722,0.01147223,87167.0,87156.0,0.01148]
[1767072968929,0.01147209,87168.0,87156.0,0.02295367]
[1767072969175,0.01147196,87169.0,87156.0,0.02295367]
[1767072969530,0.53337826,87170.0,87156.0,0.02295367]
[1767072969935,0.53337826,87170.0,87157.0,0.01147354]
[1767072970279,0.02295144,87173.0,87159.0,0.01147328]
[1767072970486,0.02295144,87173.0,87160.0,0.01147315]
[1767072970791,0.01147157,87172.0,87160.0,0.01147315]
[1767072971085,0.01147157,87172.0,87159.0,0.01147328]
[1767072971086,0.0114717,87171.0,87159.0,0.01147328]
[1767072971438,0.01147157,87172.0,87159.0,0.01147328]
[1767072971633,0.0114717,87171.0,87158.0,0.01147341]
[1767072971887,0.04765634,87173.0,87159.0,0.01147328]
[1767072972112,0.01147157,87172.0,87159.0,0.01147328]
[1767072972726,0.01147157,87172.0,87160.0,0.01147315]
[1767072973106,0.01147157,87172.0,87159.0,0.01147328]
[1767072973303,0.04765634,87173.0,87160.0,0.01147315]
[1767072973622,4.9e-06,87174.0,87167.0,0.01147223]
[1767072973803,0.0002,87180.0,87170.0,0.01147183]
[1767072974005,0.0002,87180.0,87168.0,0.01147209]
[1767072974006,0.0002,87180.0,87167.0,0.01147223]
[1767072974206,0.0002,87180.0,87170.0,0.57926519]
[1767072974432,0.06882752,87188.0,87170.0,0.57926519]
[1767072974433,0.00997923,87187.0,87180.0,0.0002]
[1767072974742,0.01148,87188.0,87180.0,1e-08]
[1767072974947,0.01148,87188.0,87176.0,0.01147104]
[1767072975147,0.02294946,87188.0,87172.0,0.01147157]
[1767072975310,0.02294946,87188.0,87174.0,0.01147131]
[1767072975726,0.01146959,87187.0,87174.0,0.01147131]
[1767072975930,0.01146973,87186.0,87173.0,0.01147144]
[1767072976337,0.01146959,87187.0,87172.0,0.01147157]
[1767072976512,0.01146973,87186.0,87174.0,0.01147131]
[1767072976712,0.01146959,87187.0,87174.0,0.01147131]
[1767072977257,0.01070819,87186.0,87175.0,0.01147117]
[1767072977422,0.01070819,87185.0,87175.0,0.01147117]
[1767072977757,0.01146959,87187.0,87175.0,0.01147117]
[1767072977984,0.01146986,87185.0,87173.0,0.01147144]
[1767072978187,0.01146999,87184.0,87172.0,0.01147157]
[1767072978494,0.01147012,87183.0,87171.0,0.01148]
[1767072978777,0.01147025,87182.0,87171.0,0.01148]
[1767072978976,0.01147012,87183.0,87171.0,0.01148]
[1767072979176,0.01147012,87183.0,87171.0,0.0229517]
[1767072979355,0.05734817,87187.0,87172.0,0.01147157]
[1767072979560,0.01070196,87186.0,87174.0,0.01147131]
[1767072979788,0.01146959,87187.0,87175.0,0.01147117]
[1767072980077,0.01070194,87186.0,87175.0,0.01147117]
[1767072980280,0.01146959,87187.0,87175.0,0.01147117]
[1767072980467,0.02217028,87186.0,87174.0,0.01147131]
[1767072980644,0.01146959,87187.0,87175.0,0.01147117]
[1767072980858,0.01070074,87186.0,87175.0,0.01147117]
[1767072981066,0.01146973,87186.0,87173.0,0.01147144]
[1767072981260,0.01146959,87187.0,87175.0,0.01147117]
[1767072981461,0.01146959,87187.0,87174.0,0.01147131]
[1767072981644,0.01146959,87187.0,87175.0,0.01147117]
[1767072982655,0.02294946,87188.0,87175.0,0.01147117]
[1767072982877,0.01069857,87187.0,87175.0,0.01147117]
[1767072983134,0.02294946,87188.0,87176.0,0.01147104]
[1767072983479,0.01069802,87187.0,87176.0,0.01147104]
[1767072983682,0.01146959,87187.0,87175.0,0.01147117]
[1767072983884,0.01146959,87187.0,87174.0,0.01147131]
[1767072984044,0.01146959,87187.0,87173.0,0.01147144]
[1767072984230,0.01146973,87186.0,87174.0,0.01147131]
[1767072984433,0.01146986,87185.0,87172.0,0.01147157]
[1767072984927,0.01146973,87186.0,87173.0,0.01147144]
[1767072985128,0.01146959,87187.0,87174.0,0.01147131]
[1767072985603,0.01146959,87187.0,87175.0,0.01147117]
[1767072985879,0.01148,87188.0,87178.0,0.01147078]
[1767072986085,0.06901378,87192.0,87178.0,0.01147078]
[1767072986086,0.0002,87192.0,87188.0,0.000349]
[1767072986282,0.0002,87192.0,87187.0,0.01146959]
[1767072986578,0.0002,87192.0,87186.0,0.02294973]
[1767072986879,0.0002,87192.0,87186.0,0.01148]
[1767072987106,0.0002,87192.0,87186.0,0.02294973]
[1767072987385,0.0002,87192.0,87186.0,0.01148]
[1767072987579,0.0002,87192.0,87186.0,0.02294973]
[1767072987726,0.0002,87192.0,87187.0,0.01146959]
[1767072988279,0.0002,87192.0,87186.0,0.02294973]
[1767072988486,0.0002,87192.0,87187.0,0.01146959]
[1767072988698,0.0002,87192.0,87186.0,0.01148]
[1767072988896,0.0002,87192.0,87186.0,0.02240073]
[1767072989221,0.0002,87192.0,87186.0,0.010931]
[1767072992925,0.0002,87192.0,87186.0,0.02240073]
[1767072993361,0.0002,87192.0,87186.0,0.010931]
[1767072993536,0.0002,87192.0,87186.0,0.02240073]
[1767072994040,0.0002,87192.0,87188.0,0.01146946]
[1767072994246,0.0002,87192.0,87187.0,0.01146959]
[1767072994607,0.0002,87192.0,87186.0,0.010931]
[1767072998226,0.0002,87192.0,87186.0,0.02240073]
[1767072998431,0.00015824,87192.0,87186.0,0.010931]
[1767072998636,0.00015824,87192.0,87186.0,0.02240073]
[1767072999139,0.00627264,87198.0,87186.0,0.02240073]
[1767072999483,0.00623052,87198.0,87186.0,0.02240073]
[1767073000446,0.00618741,87198.0,87186.0,0.02240073]
[1767073000653,0.01146828,87197.0,87186.0,0.010931]
[1767073002122,0.00618741,87198.0,87186.0,0.010931]
[1767073002468,0.00618741,87198.0,87186.0,0.02240073]
[1767073003055,0.03076893,87216.0,87186.0,0.02240073]
[1767073003056,0.01146894,87192.0,87186.0,0.010931]
[1767073003311,0.00055,87186.0,87176.0,0.05735523]
[1767073003469,0.00064493,87186.0,87179.0,0.01147065]
[1767073003675,9.493e-05,87186.0,87179.0,0.01147065]
[1767073003909,9.493e-05,87186.0,87178.0,0.01147078]
[1767073004088,9.493e-05,87186.0,87179.0,0.01147065]
[1767073004673,9.493e-05,87186.0,87178.0,0.01147078]
[1767073004917,9.493e-05,87186.0,87179.0,0.01147065]
[1767073005275,9.493e-05,87186.0,87178.0,0.01147078]
[1767073005752,9.493e-05,87186.0,87179.0,0.01147065]
[1767073005891,9.493e-05,87186.0,87180.0,0.01147052]
[1767073007837,9.493e-05,87186.0,87179.0,0.01147065]
[1767073008197,9.493e-05,87186.0,87180.0,0.01147052]
[1767073010097,9.493e-05,87186.0,87179.0,0.01147065]
[1767073010476,9.493e-05,87186.0,87180.0,0.01147052]
[1767073010724,9.493e-05,87186.0,87179.0,0.01147065]
[1767073010867,9.493e-05,87186.0,87180.0,0.01147052]
[1767073011267,9.493e-05,87186.0,87179.0,0.01147065]
[1767073011484,9.493e-05,87186.0,87180.0,0.01147052]
[1767073011694,9.3e-07,87186.0,87181.0,0.01147038]
[1767073011875,9.3e-07,87186.0,87182.0,0.01147025]
[1767073012588,9.3e-07,87186.0,87183.0,0.01147012]
[1767073012787,9.3e-07,87186.0,87184.0,0.01148]
[1767073021022,9.3e-07,87186.0,87184.0,0.011386]
[1767073021221,9.3e-07,87186.0,87176.0,0.06882617]
[1767073021222,9.3e-07,87186.0,87185.0,0.01148]
[1767073021477,9.3e-07,87186.0,87179.0,0.01147065]
[1767073021660,9.3e-07,87186.0,87183.0,0.01148]
[1767073022441,9.3e-07,87186.0,87183.0,0.01093]
[1767073022647,9.3e-07,87186.0,87183.0,0.00013639]
[1767073026110,0.01147012,87183.0,87172.0,0.0001465]
[1767073026298,0.01147052,87180.0,87173.0,0.01148]
[1767073026497,0.01147038,87181.0,87173.0,0.01148]